fUST/lending_fUST_20260522
["ID","MTS","AMOUNT","RATE_DAILY","PERIOD"]
[422777448,1779379232000,200.0,0.00017555,120]
[422777452,1779379410000,200.0,0.00017505,120]
[422777465,1779379470000,200.0,0.00017482,120]
[422777471,1779379531000,200.0,0.00017519,120]
[422777483,1779379590000,200.0,0.00017547,120]
[422777486,1779379770000,200.0,0.00017002,120]
[422777511,1779379832000,-5000.0,6.933e-05,2]
[422777513,1779379832000,-471.89907171,7.018e-05,2]
[422777517,1779379832000,-480.0,7.23e-05,2]
[422777528,1779379832000,-180.0,7.329e-05,2]
[422777515,1779379832000,-1128.50755564,7.131e-05,2]
[422777520,1779379832000,-300.0,7.235e-05,2]
[422777524,1779379832000,-136.80290864,7.329e-05,2]
[422777519,1779379832000,-2187.29069473,7.231e-05,2]
[422777522,1779379832000,-300.0,7.329e-05,2]
[422777526,1779379832000,-163.19709136,7.329e-05,2]
[422777530,1779379832000,-264.94087528,7.331e-05,2]
[422777647,1779379838000,-300.0,7.477e-05,2]
[422777637,1779379838000,-1985.4165939,7.331e-05,2]
[422777639,1779379838000,-300.0,7.477e-05,2]
[422777641,1779379838000,-300.0,7.477e-05,2]
[422777640,1779379838000,-300.0,7.477e-05,2]
[422777643,1779379838000,-300.0,7.477e-05,2]
[422777642,1779379838000,-300.0,7.477e-05,2]
[422777644,1779379838000,-300.0,7.477e-05,2]
[422777638,1779379838000,-2417.59367021,7.431e-05,2]
[422777645,1779379838000,-300.0,7.477e-05,2]
[422777649,1779379838000,-300.0,7.477e-05,2]
[422777648,1779379838000,-300.0,7.477e-05,2]
[422777654,1779379838000,-2584.82987137,7.531e-05,2]
[422777651,1779379838000,-300.0,7.477e-05,2]
[422777652,1779379838000,-300.0,7.477e-05,2]
[422777653,1779379838000,-300.0,7.477e-05,2]
[422777650,1779379838000,-300.0,7.477e-05,2]
[422777646,1779379838000,-300.0,7.477e-05,2]
[422777701,1779379839000,-794.07,8.219e-05,2]
[422777699,1779379839000,-500.0,8.219e-05,2]
[422777697,1779379839000,-500.0,8.219e-05,2]
[422777695,1779379839000,-409.96,8.219e-05,2]
[422777696,1779379839000,-500.0,8.219e-05,2]
[422777688,1779379839000,-500.0,8.219e-05,2]
[422777693,1779379839000,-174.72,8.219e-05,2]
[422777692,1779379839000,-500.0,8.219e-05,2]
[422777704,1779379839000,-500.0,8.219e-05,2]
[422777690,1779379839000,-500.0,8.219e-05,2]
[422777691,1779379839000,-500.0,8.219e-05,2]
[422777687,1779379839000,-500.0,8.219e-05,2]
[422777694,1779379839000,-500.0,8.219e-05,2]
[422777705,1779379839000,-500.0,8.219e-05,2]
[422777706,1779379839000,-500.0,8.219e-05,2]
[422777700,1779379839000,-500.0,8.219e-05,2]
[422777702,1779379839000,-500.0,8.219e-05,2]
[422777703,1779379839000,-387.8,8.219e-05,2]
[422777707,1779379839000,-500.0,8.219e-05,2]
[422777710,1779379839000,-173.6,8.219e-05,2]
[422777709,1779379839000,-257.5,8.219e-05,2]
[422777711,1779379839000,-500.0,8.219e-05,2]
[422777713,1779379839000,-500.0,8.219e-05,2]
[422777712,1779379839000,-500.0,8.219e-05,2]
[422777718,1779379839000,-513.45438686,8.219e-05,2]
[422777715,1779379839000,-188.39,8.219e-05,2]
[422777714,1779379839000,-501.31940103,8.219e-05,2]
[422777717,1779379839000,-500.0,8.219e-05,2]
[422777689,1779379839000,-337.9,8.219e-05,2]
[422777698,1779379839000,-466.54,8.219e-05,2]
[422777686,1779379839000,-535.56736104,8.219e-05,2]
[422777668,1779379839000,-500.0,8.218e-05,2]
[422777685,1779379839000,-500.0,8.219e-05,2]
[422777656,1779379839000,-2752.06607254,7.631e-05,2]
[422777655,1779379839000,-600.0,7.626e-05,2]
[422777657,1779379839000,-2920.74048488,7.731e-05,2]
[422777658,1779379839000,-3088.0635386,8.004e-05,2]
[422777663,1779379839000,-500.0,8.218e-05,2]
[422777661,1779379839000,-210.0,8.062e-05,2]
[422777664,1779379839000,-500.0,8.218e-05,2]
[422777659,1779379839000,-328.06066723,8.019e-05,2]
[422777660,1779379839000,-1261.939173,8.059e-05,2]
[422777662,1779379839000,-45920.71950036,8.102e-05,2]
[422777665,1779379839000,-500.0,8.218e-05,2]
[422777667,1779379839000,-500.0,8.218e-05,2]
[422777666,1779379839000,-500.0,8.218e-05,2]
[422777670,1779379839000,-500.0,8.218e-05,2]
[422777669,1779379839000,-500.0,8.218e-05,2]
[422777716,1779379839000,-500.0,8.219e-05,2]
[422777672,1779379839000,-500.0,8.218e-05,2]
[422777671,1779379839000,-500.0,8.218e-05,2]
[422777673,1779379839000,-500.0,8.218e-05,2]
[422777676,1779379839000,-500.0,8.218e-05,2]
[422777675,1779379839000,-602.36572129,8.218e-05,2]
[422777678,1779379839000,-500.0,8.218e-05,2]
[422777674,1779379839000,-500.0,8.218e-05,2]
[422777677,1779379839000,-500.0,8.218e-05,2]
[422777679,1779379839000,-500.0,8.218e-05,2]
[422777680,1779379839000,-1003.1685,8.219e-05,2]
[422777681,1779379839000,-500.0,8.219e-05,2]
[422777683,1779379839000,-622.19,8.219e-05,2]
[422777682,1779379839000,-500.0,8.219e-05,2]
[422777684,1779379839000,-500.0,8.219e-05,2]
[422777719,1779379839000,-500.0,8.219e-05,2]
[422777708,1779379839000,-500.0,8.219e-05,2]
[422777724,1779379839000,-500.0,8.219e-05,2]
[422777754,1779379839000,-505.34,8.219e-05,2]
[422777756,1779379839000,-500.0,8.219e-05,2]
[422777758,1779379839000,-500.0,8.219e-05,2]
[422777757,1779379839000,-500.0,8.219e-05,2]
[422777759,1779379839000,-12459.56,8.219e-05,2]
[422777764,1779379839000,-500.0,8.219e-05,2]
[422777762,1779379839000,-500.0,8.219e-05,2]
[422777761,1779379839000,-558.62,8.219e-05,2]
[422777760,1779379839000,-554.74,8.219e-05,2]
[422777763,1779379839000,-500.0,8.219e-05,2]
[422777765,1779379839000,-500.0,8.219e-05,2]
[422777767,1779379839000,-2515.14,8.219e-05,2]
[422777766,1779379839000,-500.0,8.219e-05,2]
[422777768,1779379839000,-500.0,8.219e-05,2]
[422777755,1779379839000,-981.74,8.219e-05,2]
[422777771,1779379839000,-735.58,8.219e-05,2]
[422777769,1779379839000,-500.0,8.219e-05,2]
[422777770,1779379839000,-1418.73,8.219e-05,2]
[422777773,1779379839000,-500.0,8.219e-05,2]
[422777774,1779379839000,-704.38,8.219e-05,2]
[422777775,1779379839000,-500.0,8.219e-05,2]
[422777777,1779379839000,-500.0,8.219e-05,2]
[422777776,1779379839000,-500.0,8.219e-05,2]
[422777779,1779379839000,-500.0,8.219e-05,2]
[422777720,1779379839000,-500.0,8.219e-05,2]
[422777780,1779379839000,-500.0,8.219e-05,2]
[422777782,1779379839000,-233.11830739,8.219e-05,2]
[422777783,1779379839000,-1967.98,8.219e-05,2]
[422777781,1779379839000,-416.0,8.219e-05,2]
[422777784,1779379839000,-500.0,8.219e-05,2]
[422777772,1779379839000,-517.78,8.219e-05,2]
[422777753,1779379839000,-324.62,8.219e-05,2]
[422777778,1779379839000,-1047.94,8.219e-05,2]
[422777752,1779379839000,-500.0,8.219e-05,2]
[422777751,1779379839000,-541.84,8.219e-05,2]
[422777722,1779379839000,-500.0,8.219e-05,2]
[422777721,1779379839000,-500.0,8.219e-05,2]
[422777725,1779379839000,-500.0,8.219e-05,2]
[422777731,1779379839000,-500.0,8.219e-05,2]
[422777726,1779379839000,-687.58,8.219e-05,2]
[422777727,1779379839000,-659.99,8.219e-05,2]
[422777730,1779379839000,-500.0,8.219e-05,2]
[422777729,1779379839000,-156.96077447,8.219e-05,2]
[422777728,1779379839000,-500.0,8.219e-05,2]
[422777732,1779379839000,-500.0,8.219e-05,2]
[422777735,1779379839000,-500.0,8.219e-05,2]
[422777734,1779379839000,-500.0,8.219e-05,2]
[422777737,1779379839000,-500.0,8.219e-05,2]
[422777723,1779379839000,-1870.12,8.219e-05,2]
[422777733,1779379839000,-500.0,8.219e-05,2]
[422777736,1779379839000,-500.0,8.219e-05,2]
[422777749,1779379839000,-500.0,8.219e-05,2]
[422777748,1779379839000,-1518.93,8.219e-05,2]
[422777746,1779379839000,-500.0,8.219e-05,2]
[422777742,1779379839000,-500.0,8.219e-05,2]
[422777743,1779379839000,-587.35,8.219e-05,2]
[422777747,1779379839000,-169.3,8.219e-05,2]
[422777744,1779379839000,-500.0,8.219e-05,2]
[422777739,1779379839000,-511.84,8.219e-05,2]
[422777745,1779379839000,-2276.13,8.219e-05,2]
[422777738,1779379839000,-500.0,8.219e-05,2]
[422777750,1779379839000,-500.0,8.219e-05,2]
[422777740,1779379839000,-500.0,8.219e-05,2]
[422777741,1779379839000,-670.35,8.219e-05,2]
[422777825,1779379840000,-500.0,8.493e-05,2]
[422777817,1779379840000,-154.24,8.493e-05,2]
[422777815,1779379840000,-154.24,8.493e-05,2]
[422777821,1779379840000,-154.24,8.493e-05,2]
[422777819,1779379840000,-154.24,8.493e-05,2]
[422777812,1779379840000,-154.24,8.493e-05,2]
[422777822,1779379840000,-154.24,8.493e-05,2]
[422777820,1779379840000,-794.07,8.493e-05,2]
[422777823,1779379840000,-500.0,8.493e-05,2]
[422777824,1779379840000,-500.0,8.493e-05,2]
[422777816,1779379840000,-154.24,8.493e-05,2]
[422777818,1779379840000,-154.24,8.493e-05,2]
[422777831,1779379840000,-500.0,8.493e-05,2]
[422777827,1779379840000,-500.0,8.493e-05,2]
[422777829,1779379840000,-343.19,8.493e-05,2]
[422777826,1779379840000,-500.0,8.493e-05,2]
[422777830,1779379840000,-500.0,8.493e-05,2]
[422777833,1779379840000,-500.0,8.493e-05,2]
[422777832,1779379840000,-500.0,8.493e-05,2]
[422777834,1779379840000,-500.0,8.493e-05,2]
[422777835,1779379840000,-500.0,8.493e-05,2]
[422777836,1779379840000,-500.0,8.493e-05,2]
[422777813,1779379840000,-154.24,8.493e-05,2]
[422777837,1779379840000,-500.0,8.493e-05,2]
[422777828,1779379840000,-500.0,8.493e-05,2]
[422777810,1779379840000,-154.24,8.493e-05,2]
[422777798,1779379840000,-500.0,8.493e-05,2]
[422777809,1779379840000,-154.24,8.493e-05,2]
[422777839,1779379840000,-500.0,8.493e-05,2]
[422777786,1779379840000,-500.0,8.219e-05,2]
[422777787,1779379840000,-225.35051899,8.375e-05,2]
[422777785,1779379840000,-500.0,8.219e-05,2]
[422777788,1779379840000,-720.0,8.388e-05,2]
[422777789,1779379840000,-1261.939173,8.398e-05,2]
[422777790,1779379840000,-3246.07383383,8.433e-05,2]
[422777792,1779379840000,-1003.1685,8.493e-05,2]
[422777791,1779379840000,-500.0,8.493e-05,2]
[422777793,1779379840000,-500.0,8.493e-05,2]
[422777794,1779379840000,-500.0,8.493e-05,2]
[422777811,1779379840000,-154.24,8.493e-05,2]
[422777796,1779379840000,-500.0,8.493e-05,2]
[422777795,1779379840000,-500.0,8.493e-05,2]
[422777799,1779379840000,-500.0,8.493e-05,2]
[422777802,1779379840000,-500.0,8.493e-05,2]
[422777801,1779379840000,-500.0,8.493e-05,2]
[422777800,1779379840000,-500.0,8.493e-05,2]
[422777803,1779379840000,-154.24,8.493e-05,2]
[422777805,1779379840000,-154.24,8.493e-05,2]
[422777806,1779379840000,-154.24,8.493e-05,2]
[422777804,1779379840000,-154.24,8.493e-05,2]
[422777807,1779379840000,-154.24,8.493e-05,2]
[422777808,1779379840000,-154.24,8.493e-05,2]
[422777797,1779379840000,-500.0,8.493e-05,2]
[422777838,1779379840000,-1870.12,8.493e-05,2]
[422777814,1779379840000,-154.24,8.493e-05,2]
[422777843,1779379840000,-500.0,8.493e-05,2]
[422777880,1779379840000,-500.0,8.493e-05,2]
[422777878,1779379840000,-12459.56,8.493e-05,2]
[422777881,1779379840000,-500.0,8.493e-05,2]
[422777879,1779379840000,-558.62,8.493e-05,2]
[422777883,1779379840000,-500.0,8.493e-05,2]
[422777885,1779379840000,-500.0,8.493e-05,2]
[422777887,1779379840000,-2515.14,8.493e-05,2]
[422777889,1779379840000,-153.14,8.493e-05,2]
[422777896,1779379840000,-735.58,8.493e-05,2]
[422777891,1779379840000,-631.44,8.493e-05,2]
[422777895,1779379840000,-1418.73,8.493e-05,2]
[422777893,1779379840000,-500.0,8.493e-05,2]
[422777899,1779379840000,-500.0,8.493e-05,2]
[422777898,1779379840000,-500.0,8.493e-05,2]
[422777900,1779379840000,-443.64,8.493e-05,2]
[422777901,1779379840000,-1047.94,8.493e-05,2]
[422777903,1779379840000,-1967.98,8.493e-05,2]
[422777902,1779379840000,-500.0,8.493e-05,2]
[422777905,1779379840000,-500.0,8.493e-05,2]
[422777906,1779379840000,-1161.04,8.498e-05,2]
[422777904,1779379840000,-500.0,8.493e-05,2]
[422777907,1779379840000,-572.35,8.498e-05,2]
[422777908,1779379840000,-605.62,8.498e-05,2]
[422777909,1779379840000,-500.0,8.498e-05,2]
[422777840,1779379840000,-500.0,8.493e-05,2]
[422777876,1779379840000,-500.0,8.493e-05,2]
[422777877,1779379840000,-500.0,8.493e-05,2]
[422777897,1779379840000,-704.38,8.493e-05,2]
[422777872,1779379840000,-394.63600359,8.493e-05,2]
[422777845,1779379840000,-637.39,8.493e-05,2]
[422777874,1779379840000,-500.0,8.493e-05,2]
[422777841,1779379840000,-687.58,8.493e-05,2]
[422777846,1779379840000,-500.0,8.493e-05,2]
[422777842,1779379840000,-659.99,8.493e-05,2]
[422777844,1779379840000,-500.0,8.493e-05,2]
[422777847,1779379840000,-500.0,8.493e-05,2]
[422777848,1779379840000,-500.0,8.493e-05,2]
[422777850,1779379840000,-500.0,8.493e-05,2]
[422777852,1779379840000,-500.0,8.493e-05,2]
[422777856,1779379840000,-511.84,8.493e-05,2]
[422777854,1779379840000,-500.0,8.493e-05,2]
[422777858,1779379840000,-500.0,8.493e-05,2]
[422777849,1779379840000,-500.0,8.493e-05,2]
[422777859,1779379840000,-670.35,8.493e-05,2]
[422777868,1779379840000,-500.0,8.493e-05,2]
[422777870,1779379840000,-105.36399641,8.493e-05,2]
[422777869,1779379840000,-981.74,8.493e-05,2]
[422777866,1779379840000,-1518.93,8.493e-05,2]
[422777865,1779379840000,-500.0,8.493e-05,2]
[422777867,1779379840000,-500.0,8.493e-05,2]
[422777864,1779379840000,-2276.13,8.493e-05,2]
[422777861,1779379840000,-635.98,8.493e-05,2]
[422777862,1779379840000,-587.35,8.493e-05,2]
[422777863,1779379840000,-500.0,8.493e-05,2]
[422777910,1779379840000,-500.0,8.498e-05,2]
[422777954,1779379841000,-687.58,8.767e-05,2]
[422777956,1779379841000,-500.0,8.767e-05,2]
[422777953,1779379841000,-500.0,8.767e-05,2]
[422777952,1779379841000,-500.0,8.767e-05,2]
[422777950,1779379841000,-500.0,8.767e-05,2]
[422777949,1779379841000,-271.53,8.767e-05,2]
[422777948,1779379841000,-500.0,8.767e-05,2]
[422777945,1779379841000,-500.0,8.767e-05,2]
[422777946,1779379841000,-337.26,8.767e-05,2]
[422777947,1779379841000,-500.0,8.767e-05,2]
[422777943,1779379841000,-500.0,8.767e-05,2]
[422777955,1779379841000,-659.99,8.767e-05,2]
[422777951,1779379841000,-1870.12,8.767e-05,2]
[422777957,1779379841000,-154.26,8.767e-05,2]
[422777969,1779379841000,-235.68,8.767e-05,2]
[422777958,1779379841000,-500.0,8.767e-05,2]
[422777959,1779379841000,-500.0,8.767e-05,2]
[422777962,1779379841000,-500.0,8.767e-05,2]
[422777963,1779379841000,-500.0,8.767e-05,2]
[422777967,1779379841000,-670.35,8.767e-05,2]
[422777965,1779379841000,-511.84,8.767e-05,2]
[422777964,1779379841000,-500.0,8.767e-05,2]
[422777966,1779379841000,-500.0,8.767e-05,2]
[422777968,1779379841000,-587.35,8.767e-05,2]
[422777970,1779379841000,-2276.13,8.767e-05,2]
[422777975,1779379841000,-981.74,8.767e-05,2]
[422777974,1779379841000,-500.0,8.767e-05,2]
[422777944,1779379841000,-500.0,8.767e-05,2]
[422777960,1779379841000,-197.34,8.767e-05,2]
[422777942,1779379841000,-500.0,8.767e-05,2]
[422777913,1779379841000,-663.94,8.498e-05,2]
[422777940,1779379841000,-154.03,8.767e-05,2]
[422777911,1779379841000,-500.0,8.498e-05,2]
[422777912,1779379841000,-500.0,8.498e-05,2]
[422777914,1779379841000,-1784.32,8.498e-05,2]
[422777915,1779379841000,-727.55,8.498e-05,2]
[422777971,1779379841000,-500.0,8.767e-05,2]
[422777916,1779379841000,-500.0,8.498e-05,2]
[422777917,1779379841000,-500.0,8.498e-05,2]
[422777918,1779379841000,-197893.11823988,8.517e-05,2]
[422777919,1779379841000,-500.0,8.524e-05,2]
[422777920,1779379841000,-3327.70363334,8.559e-05,2]
[422777923,1779379841000,-730.48054354,8.764e-05,2]
[422777922,1779379841000,-1261.939173,8.738e-05,2]
[422777921,1779379841000,-328.06066716,8.588e-05,2]
[422777925,1779379841000,-1003.1685,8.767e-05,2]
[422777924,1779379841000,-500.0,8.767e-05,2]
[422777926,1779379841000,-500.0,8.767e-05,2]
[422777927,1779379841000,-505.42,8.767e-05,2]
[422777929,1779379841000,-500.0,8.767e-05,2]
[422777928,1779379841000,-402.82,8.767e-05,2]
[422777931,1779379841000,-500.0,8.767e-05,2]
[422777930,1779379841000,-500.0,8.767e-05,2]
[422777932,1779379841000,-174.14,8.767e-05,2]
[422777933,1779379841000,-500.0,8.767e-05,2]
[422777935,1779379841000,-500.0,8.767e-05,2]
[422777934,1779379841000,-500.0,8.767e-05,2]
[422777936,1779379841000,-794.07,8.767e-05,2]
[422777938,1779379841000,-500.0,8.767e-05,2]
[422777939,1779379841000,-500.0,8.767e-05,2]
[422777937,1779379841000,-594.41,8.767e-05,2]
[422777941,1779379841000,-500.0,8.767e-05,2]
[422777972,1779379841000,-1518.93,8.767e-05,2]
[422777961,1779379841000,-500.0,8.767e-05,2]
[422777976,1779379841000,-500.0,8.767e-05,2]
[422777973,1779379841000,-500.0,8.767e-05,2]
[422778015,1779379841000,-3135.39149976,8.862e-05,2]
[422778013,1779379841000,-150.307,8.815e-05,2]
[422778014,1779379841000,-246.77168104,8.862e-05,2]
[422778011,1779379841000,-161.7158655,8.783e-05,2]
[422778016,1779379841000,-246.208,8.996e-05,2]
[422778017,1779379841000,-2203.0,8.996e-05,2]
[422778019,1779379841000,-742.0,8.996e-05,2]
[422778020,1779379841000,-185.0,8.996e-05,2]
[422778018,1779379841000,-475.506,8.996e-05,2]
[422778022,1779379841000,-152.0,9.001e-05,7]
[422778024,1779379841000,-500.0,9.041e-05,2]
[422778023,1779379841000,-556.84090462,9.018e-05,2]
[422778025,1779379841000,-1003.1685,9.041e-05,2]
[422778021,1779379841000,-153.55,9e-05,2]
[422778026,1779379841000,-500.0,9.041e-05,2]
[422778028,1779379841000,-500.0,9.041e-05,2]
[422778027,1779379841000,-500.0,9.041e-05,2]
[422778030,1779379841000,-500.0,9.041e-05,2]
[422778029,1779379841000,-500.0,9.041e-05,2]
[422778033,1779379841000,-794.07,9.041e-05,2]
[422778031,1779379841000,-500.0,9.041e-05,2]
[422778032,1779379841000,-500.0,9.041e-05,2]
[422778034,1779379841000,-500.0,9.041e-05,2]
[422778035,1779379841000,-500.0,9.041e-05,2]
[422778039,1779379841000,-492.28712874,9.041e-05,2]
[422778037,1779379841000,-480.99889003,9.041e-05,2]
[422778038,1779379841000,-7.71287126,9.041e-05,2]
[422778036,1779379841000,-19.00110997,9.041e-05,2]
[422778009,1779379841000,-500.0,8.772e-05,2]
[422778010,1779379841000,-500.0,8.772e-05,2]
[422778012,1779379841000,-544.429,8.815e-05,2]
[422778005,1779379841000,-500.0,8.772e-05,2]
[422777977,1779379841000,-500.0,8.767e-05,2]
[422777980,1779379841000,-11253.83056836,8.767e-05,2]
[422777979,1779379841000,-500.0,8.767e-05,2]
[422777981,1779379841000,-1205.72943164,8.767e-05,2]
[422777978,1779379841000,-500.0,8.767e-05,2]
[422777982,1779379841000,-558.62,8.767e-05,2]
[422777985,1779379841000,-500.0,8.767e-05,2]
[422777984,1779379841000,-500.0,8.767e-05,2]
[422777987,1779379841000,-435.0,8.767e-05,2]
[422777983,1779379841000,-500.0,8.767e-05,2]
[422777986,1779379841000,-1604.43833026,8.767e-05,2]
[422778008,1779379841000,-727.55,8.772e-05,2]
[422777990,1779379841000,-1418.73,8.767e-05,2]
[422777991,1779379841000,-735.58,8.767e-05,2]
[422777989,1779379841000,-500.0,8.767e-05,2]
[422777988,1779379841000,-475.70166974,8.767e-05,2]
[422777992,1779379841000,-42.75493125,8.767e-05,2]
[422778006,1779379841000,-663.94,8.772e-05,2]
[422778007,1779379841000,-1784.32,8.772e-05,2]
[422778003,1779379841000,-500.0,8.772e-05,2]
[422777993,1779379841000,-661.62506875,8.767e-05,2]
[422778002,1779379841000,-500.0,8.772e-05,2]
[422777998,1779379841000,-1967.98,8.767e-05,2]
[422778004,1779379841000,-509.26,8.772e-05,2]
[422778000,1779379841000,-500.0,8.767e-05,2]
[422777999,1779379841000,-500.0,8.767e-05,2]
[422777995,1779379841000,-189.42,8.767e-05,2]
[422777997,1779379841000,-500.0,8.767e-05,2]
[422777996,1779379841000,-1047.94,8.767e-05,2]
[422777994,1779379841000,-500.0,8.767e-05,2]
[422778001,1779379841000,-572.35,8.772e-05,2]
[422778040,1779379842000,-393.71287126,9.041e-05,2]
[422778042,1779379842000,-500.0,8.493e-05,2]
[422778041,1779379842000,-500.0,8.219e-05,2]
[422778043,1779379842000,-106.28712874,9.041e-05,2]
[422778044,1779379842000,-500.0,9.041e-05,2]
[422778046,1779379842000,-500.0,9.041e-05,2]
[422778048,1779379842000,-500.0,9.041e-05,2]
[422778049,1779379842000,-1870.12,9.041e-05,2]
[422778047,1779379842000,-515.12,9.041e-05,2]
[422778045,1779379842000,-618.03,9.041e-05,2]
[422778054,1779379842000,-323.94399025,9.041e-05,2]
[422778051,1779379842000,-207.74235676,9.041e-05,2]
[422778055,1779379842000,-336.04600975,9.041e-05,2]
[422778053,1779379842000,-687.58,9.041e-05,2]
[422778052,1779379842000,-500.0,9.041e-05,2]
[422778056,1779379842000,-44.31652912,9.041e-05,2]
[422778050,1779379842000,-276.54764324,9.041e-05,2]
[422778086,1779379844000,-1000.0,8.137e-05,2]
[422778085,1779379844000,-259.14535789,8.137e-05,2]
[422778118,1779379847000,-670.35,9.041e-05,2]
[422778116,1779379847000,-511.84,9.041e-05,2]
[422778120,1779379847000,-2276.13,9.041e-05,2]
[422778122,1779379847000,-181.36011816,9.041e-05,2]
[422778127,1779379847000,-178.46,9.041e-05,2]
[422778123,1779379847000,-1337.56988184,9.041e-05,2]
[422778125,1779379847000,-500.0,9.041e-05,2]
[422778119,1779379847000,-587.35,9.041e-05,2]
[422778121,1779379847000,-500.0,9.041e-05,2]
[422778117,1779379847000,-500.0,9.041e-05,2]
[422778108,1779379847000,-500.0,8.767e-05,2]
[422778113,1779379847000,-500.0,9.041e-05,2]
[422778114,1779379847000,-500.0,9.041e-05,2]
[422778112,1779379847000,-287.18794409,9.041e-05,2]
[422778131,1779379847000,-500.0,9.041e-05,2]
[422778109,1779379847000,-455.68347088,9.041e-05,2]
[422778110,1779379847000,-500.0,9.041e-05,2]
[422778111,1779379847000,-268.26,9.041e-05,2]
[422778107,1779379847000,-500.0,8.493e-05,2]
[422778105,1779379847000,-219.49535789,8.219e-05,2]
[422778106,1779379847000,-280.50464211,8.219e-05,2]
[422778104,1779379847000,-3740.85464211,8.137e-05,2]
[422778115,1779379847000,-500.0,9.041e-05,2]
[422778132,1779379847000,-500.0,9.041e-05,2]
[422778129,1779379847000,-981.74,9.041e-05,2]
[422778135,1779379847000,-12459.56,9.041e-05,2]
[422778156,1779379847000,-727.55,9.046e-05,2]
[422778153,1779379847000,-500.0,9.046e-05,2]
[422778155,1779379847000,-1784.32,9.046e-05,2]
[422778137,1779379847000,-500.0,9.041e-05,2]
[422778154,1779379847000,-663.94,9.046e-05,2]
[422778151,1779379847000,-500.0,9.041e-05,2]
[422778152,1779379847000,-500.0,9.046e-05,2]
[422778150,1779379847000,-500.0,9.041e-05,2]
[422778147,1779379847000,-500.0,9.041e-05,2]
[422778149,1779379847000,-500.0,9.041e-05,2]
[422778148,1779379847000,-1967.98,9.041e-05,2]
[422778157,1779379847000,-500.0,9.046e-05,2]
[422778144,1779379847000,-704.38,9.041e-05,2]
[422778145,1779379847000,-500.0,9.041e-05,2]
[422778143,1779379847000,-735.58,9.041e-05,2]
[422778142,1779379847000,-1418.73,9.041e-05,2]
[422778140,1779379847000,-2515.14,9.041e-05,2]
[422778141,1779379847000,-500.0,9.041e-05,2]
[422778138,1779379847000,-500.0,9.041e-05,2]
[422778139,1779379847000,-500.0,9.041e-05,2]
[422778134,1779379847000,-500.0,9.041e-05,2]
[422778136,1779379847000,-558.62,9.041e-05,2]
[422778133,1779379847000,-500.0,9.041e-05,2]
[422778146,1779379847000,-1047.94,9.041e-05,2]
[422778159,1779379848000,-500.0,9.072e-05,2]
[422778161,1779379848000,-1363.37556027,9.1e-05,2]
[422778160,1779379848000,-1261.939173,9.077e-05,2]
[422778162,1779379848000,-3326.28240612,9.1e-05,2]
[422778158,1779379848000,-500.0,9.046e-05,2]
[422778192,1779380810000,2068.72,0.00017808,120]
[422778202,1779381031000,-389.255,7.898e-05,2]
[422778198,1779381031000,-5830.62478607,7.6e-05,2]
[422778195,1779381031000,-5000.0,7.411e-05,2]
[422778197,1779381031000,-300.0,7.599e-05,2]
[422778196,1779381031000,-451.32427219,7.562e-05,2]
[422778199,1779381031000,-200.0,7.633e-05,2]
[422778200,1779381031000,-200.0,7.633e-05,7]
[422778203,1779381031000,-500.0,8.118e-05,2]
[422778201,1779381031000,-937.516865,7.855e-05,2]
[422778204,1779381031000,-500.0,8.118e-05,2]
[422778209,1779381031000,-500.0,8.118e-05,2]
[422778207,1779381031000,-500.0,8.118e-05,2]
[422778211,1779381031000,-500.0,8.118e-05,2]
[422778214,1779381031000,-500.0,8.118e-05,2]
[422778212,1779381031000,-500.0,8.118e-05,2]
[422778210,1779381031000,-288.53670865,8.118e-05,2]
[422778205,1779381031000,-500.0,8.118e-05,2]
[422778208,1779381031000,-500.0,8.118e-05,2]
[422778215,1779381031000,-500.0,8.118e-05,2]
[422778213,1779381031000,-500.0,8.118e-05,2]